Cogmind - Beta 13 @@@ ROGUE MODE // 2024.03.24 @ 13:34:29 Player: karlsu Result: Destroyed by S-10 Pest with Light Assault Rifle Performance ------------- Evolutions (0) 0 Regions Visited (1) 200 Robots Destroyed (18) 90 Value Destroyed (277) 277 Prototype IDs (4) 80 Alien Tech Used (0) 0 Bonus (0) 0 TOTAL SCORE: 647 Bonus ------- None Cogmind --------- Core Integrity 0/250 Matter 242/300 Energy 124/125 System Corruption 0% Temperature Cool (96) Movement Walking (120) Location -10/Materials Parts ------- > --- POWER (1) -------- Light Ion Engine > --- PROPULSION (2) --- Aluminum Leg Aluminum Leg > --- UTILITY (2) ------ Medium Storage Unit Power Shielding > --- WEAPON (2) ------- Light Assault Rifle > --- INVENTORY (10) --- Light Ion Engine Aluminum Leg Huge Storage Unit Peak State ------------ > --- POWER ------------ Light Ion Engine > --- PROPULSION ------- Aluminum Leg Aluminum Leg > --- UTILITY ---------- Huge Storage Unit Power Shielding > --- WEAPON ----------- Assault Rifle Assault Rifle > --- INVENTORY -------- Light Ion Engine Light Treads Light Treads Heat Sink Small Storage Unit Medium Storage Unit Power Shielding Particle Gun Light Assault Rifle [Rating: 8] Favorites ----------- Power Light Ion Engine Engine Light Ion Engine Propulsion Aluminum Leg Treads Light Treads Leg Aluminum Leg Utility Power Shielding Device Heat Sink Storage Huge Storage Unit Protection Power Shielding Weapon Assault Rifle Energy Gun Particle Gun Ballistic Gun Assault Rifle Build | -11 -10 ------- Run | Yrd Mat Slots Evolved . | . . Power . | . . Propulsion . | . . Utility . | . . Weapon . | . . Parts Attached 22 | 6 16 Power 2 | 1 1 Engine 2 | 1 1 Core . | . . Reactor . | . . Propulsion 8 | 2 6 Treads 2 | . 2 Leg 6 | 2 4 Wheel . | . . Hover . | . . Flight . | . . Utility 6 | 1 5 Device 1 | . 1 Storage 4 | 1 3 Processor . | . . Hackware . | . . Protection 1 | . 1 Artifact . | . . Weapon 6 | 2 4 Energy Gun 1 | . 1 Energy Cannon . | . . Ballistic Gun 5 | 2 3 Ballistic Cannon . | . . Launcher . | . . Special Weapon . | . . Impact Weapon . | . . Slashing Weapon . | . . Piercing Weapon . | . . Special Melee Weapon . | . . Unidentified Prototypes . | . . Parts Lost 6 | . 6 Power 1 | . 1 Propulsion 2 | . 2 Utility . | . . Weapon 3 | . 3 Highest Loss Streak 6 | . 6 To Critical Strikes . | . . Average Slot Usage (%) 98 | . 98 Engine 13 | . 13 Treads 7 | . 7 Leg 19 | . 19 Storage 13 | . 13 Protection 13 | . 13 Energy Gun 3 | . 3 Ballistic Gun 24 | . 24 Naked Turns . | . . Heaviest Build 88 | 12 88 Greatest Support 40 | 20 40 Greatest Overweight (x) 4 | . 4 Average Overweight (x) . | . . Largest Inventory Capacity 25 | 8 25 Average Capacity 16 | 7 17 Most Carried 10 | 6 10 Average Carried 7 | 3 7 Final Capacity 10 | 8 10 Final Carried 6 | 6 3 Class Distribution -------------------- 100% | Mutant Dominant Class ---------------- Mutant | -10/Materials Resources | -11 -10 ----------- Run | Yrd Mat Matter Collected 663 | 261 402 Remotely . | . . Salvage Created 495 | 58 437 Parts 40 | 1 39 Haulers Intercepted 1 | . 1 Recyclers Shooed 1 | . 1 Parts Field Recycled . | . . Retrieved Matter . | . . Parts Self-Destructed . | . . Prevented . | . . Kills | -11 -10 ------- Run | Yrd Mat Combat Hostiles Destroyed 9 | . 9 Guns 9 | . 9 Classes Destroyed 7 | 1 6 Worker 2 | . 2 Builder 2 | . 2 Hauler 1 | . 1 Recycler 1 | 1 . Watcher 3 | . 3 Swarmer 5 | . 5 Grunt 4 | . 4 Best Kill Streak 4 | 1 4 Combat Bots Only 3 | . 3 Max Kills in Single Turn 1 | 1 1 Gunslinging . | . . Exploded . | . . Melee . | . . Uniques/NPCs Destroyed . | . . Combat | -11 -10 -------- Run | Yrd Mat Hostile Shots Fired 132 | . 132 Missed 41 | . 41 Damage Taken 916 | . 916 Core 252 | . 252 Absorbed by Shields . | . . Redirected to Shielding 21 | . 21 Core Remaining (%) 100 | 100 . Volleys Fired 77 | 3 74 Largest 2 | 2 2 Hottest 85 | 40 85 Shots Fired 147 | 6 141 Gun 147 | 6 141 Cannon . | . . Launcher . | . . Special . | . . Kinetic 123 | 6 117 Thermal 24 | . 24 Explosive . | . . Electromagnetic . | . . Robot Hit Streak 8 | 4 8 Robot Miss Streak 5 | 1 5 Penetration Max . | . . Secondary Targets . | . . Shots Hit Robots 79 | 4 75 Core Hits 26 | 2 24 Critical Kills . | . . Critical Parts Destroyed 1 | . 1 Critical Strikes 1 | . 1 Destroy 1 | . 1 Melee Attacks . | . . Impact . | . . Slashing . | . . Piercing . | . . Sneak Attacks . | . . Combat Hostiles . | . . Follow-up Attacks . | . . Damage Inflicted 944 | 67 877 Guns 919 | 52 867 Cannons . | . . Explosions . | . . Melee . | . . Ramming 25 | 15 10 Kinetic 761 | 52 709 Thermal 158 | . 158 Explosive . | . . Electromagnetic . | . . Impact . | . . Slashing . | . . Piercing . | . . Highest Corruption . | . . Average Corruption . | . . Corruption Purged . | . . Corruption Blocked . | . . Overload Shots . | . . Overflow Damage . | . . Projectiles . | . . Explosions . | . . Melee . | . . Knockbacks . | . . Impact . | . . Kinetic . | . . Secondary . | . . Self-Inflicted Damage . | . . Shots . | . . Rammed 1 | . 1 Targets Rammed 6 | 5 1 Kicked 5 | 5 . Crushed . | . . Highest Temperature 318 | . 318 Average Temperature 127 | . 127 Received Heat Transfer 333 | . 333 Effects 1 | . 1 Energy Bleed 1 | . 1 Siege Activations . | . . Robots Corrupted . | . . Combat Hostiles . | . . Parts Fried . | . . Impact Corruptions . | . . Robots Melted . | . . Combat Hostiles . | . . Parts Melted . | . . Heat Transferred 370 | . 370 Parts Sabotaged . | . . Parts Stolen . | . . Parts Stripped . | . . Power Chain Reactions . | . . Alert | -11 -10 ------- Run | Yrd Mat Peak Influence 183 | 5 183 Initial 3 | . 3 Average 41 | 1 47 Maximum Alert Level . | . . Low Security (%) 100 | 100 100 Level 1 . | . . Level 2 . | . . Level 3 . | . . Level 4 . | . . Level 5 . | . . High Security . | . . Max Security . | . . Squads Dispatched 2 | . 2 Investigation 1 | . 1 Extermination . | . . Reinforcement 1 | . 1 Assault . | . . Garrison . | . . Intercept . | . . Searches Triggered . | . . Construction Impeded . | . . Haulers Reinforced . | . . Active Scanning Responses . | . . Cargo Convoy Interrupts . | . . Stealth | -11 -10 --------- Run | Yrd Mat Distress Signals 1 | . 1 Communications Jammed . | . . Distress Signals . | . . Times Spotted 19 | . 19 Peak Tracking Total 5 | . 5 Tactical Retreats . | . . Traps | -11 -10 ------- Run | Yrd Mat Traps Triggered 1 | . 1 Indirectly . | . . Trap Hack Attempts . | . . Triggered . | . . Disarmed . | . . Reprogrammed . | . . Reused . | . . Traps Extracted . | . . Installed . | . . Triggered . | . . Machines | -11 -10 ---------- Run | Yrd Mat Machines Disabled 1 | . 1 Max in Single Turn 1 | . 1 Machines Repaired . | . . Machines Dismantled . | . . Machines Sabotaged . | . . Overloaded Fab Kills . | . . Hacking | -11 -10 --------- Run | Yrd Mat Machines Accessed 4 | . 4 Terminals 3 | . 3 Fabricators . | . . Repair Stations . | . . Recycling Units 1 | . 1 Scanalyzers . | . . Garrison Access . | . . Total Hacks 16 | . 16 Successful 9 | . 9 Failed 7 | . 7 Catastrophic . | . . Database Lockouts . | . . Manual . | . . Terminals 13 | . 13 Fabricators . | . . Repair Stations . | . . Recycling Units 3 | . 3 Scanalyzers . | . . Garrison Access . | . . Terminal Hacks 6 | . 6 Record 3 | . 3 Prototype ID Bank 2 | . 2 Alert Level 1 | . 1 Fabricator Hacks . | . . Repair Station Hacks . | . . Recycling Unit Hacks 3 | . 3 Recycle Component 1 | . 1 Report Inventory 1 | . 1 Retrieve Components 1 | . 1 Scanalyzer . | . . Garrison Access Hacks . | . . Unauthorized Hacks . | . . Terminals . | . . Fabricators . | . . Repair Stations . | . . Recycling Units . | . . Scanalyzers . | . . Garrison Access . | . . Data Cores Recovered . | . . Used . | . . Hacking Detections 3 | . 3 Full Trace Events 2 | . 2 Feedback Events . | . . Feedback Blocked . | . . Robot Schematics Acquired . | . . Robots Built . | . . Authchips . | . . Time . | . . Total Robot Build Rating . | . . Part Schematics Acquired . | . . Parts Built . | . . Authchips . | . . Time . | . . Total Part Build Rating . | . . Parts Repaired . | . . Time . | . . Parts Recycled 1 | . 1 Recycled Matter . | . . Retrieved Matter . | . . Retrieved Components 3 | . 3 Parts Scanalyzed . | . . Part Schematics Acquired . | . . Parts Damaged . | . . Bothacking | -11 -10 ------------ Run | Yrd Mat Used RIF Installer . | . . Robots Hacked . | . . Non-combat . | . . Combat . | . . Robot Hacks Applied . | . . Relay Couplers Released . | . . Fabnet Peak Effective % . | . . Robots Rewired . | . . Allies Hacked . | . . Hacks Repelled . | . . Allies | -11 -10 -------- Run | Yrd Mat Total Allies . | . . Largest Group . | . . Highest-Rated Group . | . . Highest-Rated Ally . | . . Total Orders . | . . Ally Attacks . | . . Total Damage . | . . Kills . | . . Allies Corrupted . | . . Allies Melted . | . . Intel | -11 -10 ------- Run | Yrd Mat Robot Analysis Total . | . . Derelict Logs Recovered . | . . Drone Launches . | . . Drone Recoveries . | . . Exploration | -11 -10 ------------- Run | Yrd Mat Turns Passed 1023 | 122 901 Spaces Moved 413 | 84 329 Core 13 | 13 . Treads 49 | . 49 Legs 351 | 71 280 Wheels . | . . Hover . | . . Flight . | . . Fastest Speed 50 | 50 120 Average Speed 175 | 109 192 Slowest Speed 480 | 120 480 Overloaded Moves . | . . Propulsion Burnouts . | . . Robots Hopped . | . . Cave-ins Triggered . | . . Exploration Rate (%) 32 | 5 59 Regions Visited 1 Branch Regions . Pre-discovered Areas . | . . Known Exits Taken . | . . Unknown Exits Taken 1 | 1 . Scrap Searched . | . . Spaces Dug . | . . Terrain Destroyed . | . . Melee . | . . Projectile . | . . AOE . | . . Terrain Rammed . | . . Walls Destroyed . | . . Machines Disabled . | . . Actions | -11 -10 --------- Run | Yrd Mat Total 573 | 106 467 Wait . | . . Move 412 | 83 329 Hop . | . . Pick Up 31 | 9 22 Fast Attach 4 | 3 1 Attach 17 | 3 14 Detach 8 | . 8 Swap 1 | . 1 Drop 17 | . 17 Fire 77 | 3 74 Melee . | . . Ram . | . . Kick 5 | 5 . Crush 1 | . 1 Escape Stasis . | . . Rewire . | . . Trap . | . . Miscellaneous . | . . Route ------- -11/Scrapyard -10/Materials (discovered 2 exits: [*Mat] / [*Min]) History --------- Turn | Location | Event 9 | -11/Scrapyard | Discovered new exit (range 14) 123 | -11/Scrapyard | Entered Materials 277 | -10/Materials | Discovered new exit (range 9) 327 | -10/Materials | Build established: Mutant 505 | -10/Materials | Discovered new exit (range 16) 988 | -10/Materials | Core integrity fell below 50% 1015 | -10/Materials | Core integrity fell below 20% 1024 | -10/Materials | Destroyed by S-10 Pest with Light Assault Rifle Last Messages --------------- Acquired 11 matter. T-07 Excavator is excavating. Acquired Aluminum Leg. Triggered Alarm Trap. An alarm sounds. ALERT: Alarm triggered, dispatching investigation squad. U-05 Engineer lays Concrete. S-10 Pest destroyed. U-05 Engineer lays Concrete. S-10 Pest destroyed. Assault Rifle destroyed. G-34 Mercenary destroyed. Lgt. Ion Engine destroyed. Particle Gun destroyed. Aluminum Leg destroyed. K-01 Serf collects debris. Assault Rifle destroyed. K-01 Serf collects debris. [Achievement: First Step to Greatness] Map ----- +----------------------------------------------------+ | ?????????????????????????????????????????????? | | ?????????????????????????????????????????????? | | ?????????????????????????????????????????????? | | ?????????????????????????????????????????????? | | ?????????????????????????????????????????????? | | ???????????????????????????? ??????????????? | | ???????????????????????????# ??????????????? | | ???????????????????????????# ??????????????? | | ???????????????????????????# ??????????????? | | ???????????????????????????# #?????????????? | | ???????????????????????????# #?????????????? | | ####???????????????????????# #?????????????? | | #??????????????????????? #?????????????? | | "" #???????????????????????# #????? #??????? | | "" #???????????????????????# #???? #??????? | | "" #????????#########??????# #??? +??????? | | #????????# = ???????# #### #??????? | | "" #????????# ??????# #??????? | | "" #????????# * """??????# #??????? | | "" #????????# """#?????# #??????? | | #????????# """#?????# """" #??????? | | #????????# """#?????# !"""" #??????? | | #????????# """??????# %"""" #??????? | | #????????# ????????# k #??????? | | ########## ?????###### #??????? | | ##### ##+######## @!g[ %k #??????? | | s%=% g !#####+##??????? | | < = * =#?? #??????? | | o *# ! #??????? | | #####" "## """"" =+ #??????? | | ????#" |"| "## """"" # #??????? | | ????#"""""""## """"" !! #?? #??????? | | ????########## ! #???? #??????? | | ?????????????# #?######??????? | | ?????????????### """ # #??????? | | ???????????????# """ # ! #??????? | | ???????????????# """ + #??????? | | ???????????????# # [[ #??????? | | ???????????????+ ! # [[ #??????? | | ???????????????# #? [[ #??????? | | ???????????????# ###+#######?######??????? | | ???????????????######?? ????????????????????? | | ?????????????????????? "?????????????????????? | | ?????????????????????# ??????????????????????? | | ?????????????????????#???????????????????????? | | ?????????????????????????????????????????????? | | ?????????????????????????????????????????????? | | ????##########???????????????????????????????? | | ????# #???????????????????????????????? | | ##### """"" #???????????????????????????????? | +----------------------------------------------------+ Best States ------------- Heat Dissipation 35 Energy Generation 10 Energy Capacity 125 Matter Stores 300 Matter Capacity 300 Sight Range 16 Terrain Scan Density 10 Power Shielding 33 Evasion (%) 55 Recoil Reduction 2 Item Schematics ----------------- None Robot Schematics ------------------ None Fabricated ------------ Nothing Alien Tech Used ----------------- None Achievements -------------- First Step to Greatness Loot Pinata Challenges ------------ None Game ------ Seed ReinforcedReflectiveLaser Manual? 0 Play Time 00:20:47 Cumulative 6.9 hours Start 2024.03.24 @ 13:17:35 End 2024.03.24 @ 13:34:29 Sessions 1 Manual Loads 0 Difficulty Rogue Special Mode None Game No. 13 Rogue 12 Adventurer 0 Explorer 1 Win Type - Total 0 Types 0/0/0/0/0/0/0/0/0 Lore% 2 Gallery% 9 Achievement% 2 Wizard Run 0 Options --------- Layout 1 ASCII 0 Keyboard 0 Movement Mouse Keybinds 0 Fullscreen 1 Font 24/Smallcaps Map View 50x35 Zoom Use 0% Tactical HUD 0 Map Filters NONE Filters NONE Steam 1 RUN: da22614b-ebc9-478d-9d1d-a013d3d6c6a2